{"text_format":"1","workbook":"xlsx","n_sheets":2,"sheets":["ROW-Production Hours","Definitions"],"not_rendered":{"charts":0,"images":2,"macros":1,"external_links":0,"defined_names":1,"comments":0,"pivot_tables":0},"unopened":[],"bounds":{"document_bytes":16777216,"sheet_cells":100000,"rows_first":2000,"rows_last":500,"rows_between":2000,"halvings":0,"cell_chars":16384,"cell_head_chars":4096},"cells_cut":0,"cells_raw":0,"read":"whole","date_system":"1900"}

{"sheet":"ROW-Production Hours","index":0,"n_rows":129,"n_cols":93,"rows_kept":129,"cut":false,"hidden":false,"merged":[[115,1,115,56],[108,1,110,15],[108,16,108,41],[108,42,108,50],[108,51,108,52],[108,53,108,54],[108,55,108,56],[110,16,110,41],[110,42,110,50],[110,51,110,52],[110,53,110,54],[110,55,110,56],[108,75,108,76],[108,77,108,78],[108,79,108,80],[109,16,109,41],[109,42,109,50],[109,51,109,56],[109,59,109,67],[109,68,109,73],[109,75,109,80],[110,75,110,76],[110,77,110,78],[110,79,110,80],[111,1,111,56],[112,1,112,56],[113,1,114,3],[113,4,114,31],[113,32,114,39],[113,40,114,49],[113,50,114,56],[113,58,114,66],[106,50,106,56],[96,74,96,80],[97,58,97,66],[97,67,97,73],[97,74,97,80],[98,58,98,66],[98,67,98,73],[98,74,98,80],[99,58,99,66],[99,67,99,73],[99,74,99,80],[104,74,104,80],[105,58,105,66],[105,67,105,73],[105,74,105,80],[106,58,106,66],[106,67,106,73],[106,74,106,80],[100,74,100,80],[101,58,101,66],[101,67,101,73],[101,74,101,80],[102,58,102,66],[102,67,102,73],[102,74,102,80],[103,58,103,66],[103,67,103,73],[103,74,103,80],[101,50,101,56],[100,50,100,56],[102,1,102,3],[102,4,102,31],[102,32,102,40],[102,41,102,49],[102,50,102,56],[103,1,103,3],[103,4,103,31],[103,32,103,40],[103,41,103,49],[103,50,103,56],[104,1,104,3],[104,4,104,31],[104,32,104,40],[104,41,104,49],[104,50,104,56],[105,1,105,3],[105,4,105,31],[105,32,105,40],[105,41,105,49],[105,50,105,56],[68,50,68,56],[85,50,85,56],[83,50,83,56],[81,50,81,56],[93,74,93,80],[93,67,93,73],[93,58,93,66],[18,67,18,73],[18,74,18,80],[52,58,52,66],[18,58,18,66],[71,74,71,80],[71,67,71,73],[71,58,71,66],[82,74,82,80],[82,67,82,73],[82,58,82,66],[21,67,21,73],[23,67,23,73],[24,67,24,73],[25,67,25,73],[21,58,21,66],[23,58,23,66],[24,58,24,66],[25,58,25,66],[29,67,29,73],[30,67,30,73],[29,58,29,66],[79,50,79,56],[73,1,73,56],[85,1,85,3],[85,4,85,31],[49,1,49,3],[49,4,49,31],[49,32,49,40],[49,41,49,49],[49,50,49,56],[48,1,48,3],[48,4,48,31],[60,50,61,56],[53,1,53,3],[53,4,53,31],[53,32,53,40],[53,41,53,49],[53,50,53,56],[51,1,51,3],[51,4,51,31],[51,32,51,40],[51,41,51,49],[51,50,51,56],[48,32,48,40],[48,41,48,49],[48,50,48,56],[52,1,52,3],[52,4,52,31],[55,42,55,50],[52,32,52,40],[52,41,52,49],[52,50,52,56],[55,51,55,52],[55,53,55,54],[55,55,55,56],[50,4,50,31],[50,32,50,40],[85,41,85,49],[75,4,75,31],[75,32,75,40],[75,41,75,49],[75,50,75,56],[84,1,84,56],[78,50,78,56],[77,50,77,56],[76,50,76,56],[83,1,83,3],[83,4,83,31],[83,32,83,40],[83,41,83,49],[81,1,81,3],[81,4,81,31],[81,32,81,40],[81,41,81,49],[80,1,80,3],[82,1,82,3],[82,4,82,31],[82,32,82,40],[82,41,82,49],[82,50,82,56],[77,1,77,3],[77,4,77,31],[77,32,77,40],[77,41,77,49],[76,1,76,3],[76,4,76,31],[76,32,76,40],[76,41,76,49],[120,50,120,56],[119,50,119,56],[95,1,95,56],[96,1,96,3],[96,4,96,31],[96,32,96,40],[96,41,96,49],[96,50,96,56],[97,1,97,3],[97,4,97,31],[97,32,97,40],[97,41,97,49],[97,50,97,56],[98,1,98,3],[98,4,98,31],[98,32,98,40],[80,50,80,56],[93,32,93,40],[93,41,93,49],[93,50,93,56],[98,41,98,49],[98,50,98,56],[99,1,99,3],[99,4,99,31],[99,32,99,40],[99,41,99,49],[99,50,99,56],[100,1,100,3],[100,4,100,31],[100,32,100,40],[100,41,100,49],[85,32,85,40],[127,50,127,56],[126,50,126,56],[125,50,125,56],[124,50,124,56],[57,55,57,56],[58,1,58,56],[59,1,59,56],[127,1,127,3],[127,4,127,31],[127,32,127,40],[127,41,127,49],[126,1,126,3],[126,4,126,31],[126,32,126,40],[126,41,126,49],[125,1,125,3],[125,4,125,31],[125,32,125,40],[125,41,125,49],[124,1,124,3],[124,4,124,31],[124,32,124,40],[124,41,124,49],[123,1,123,3],[118,50,118,56],[117,50,117,56],[116,50,116,56],[94,50,94,56],[92,50,92,56],[123,50,123,56],[122,50,122,56],[121,50,121,56],[120,1,120,3],[120,4,120,31],[120,32,120,40],[120,41,120,49],[119,1,119,3],[119,4,119,31],[119,32,119,40],[119,41,119,49],[118,1,118,3],[118,4,118,31],[118,32,118,40],[118,41,118,49],[123,4,123,31],[123,32,123,40],[123,41,123,49],[122,1,122,3],[122,4,122,31],[122,32,122,40],[122,41,122,49],[121,1,121,3],[121,4,121,31],[121,32,121,40],[121,41,121,49],[117,1,117,3],[117,4,117,31],[117,32,117,40],[117,41,117,49],[116,1,116,3],[116,4,116,31],[116,32,116,40],[116,41,116,49],[86,4,86,31],[86,32,86,40],[86,41,86,49],[89,4,89,31],[89,32,89,40],[89,41,89,49],[88,1,88,3],[88,4,88,31],[88,32,88,40],[88,41,88,49],[87,1,87,3],[87,4,87,31],[87,32,87,40],[87,41,87,49],[86,1,86,3],[93,1,93,3],[101,1,101,3],[101,4,101,31],[101,32,101,40],[101,41,101,49],[106,1,106,3],[106,4,106,31],[106,32,106,40],[106,41,106,49],[86,50,86,56],[91,50,91,56],[90,50,90,56],[89,50,89,56],[88,50,88,56],[87,50,87,56],[94,1,94,3],[94,4,94,31],[94,32,94,40],[94,41,94,49],[92,1,92,3],[92,4,92,31],[92,32,92,40],[92,41,92,49],[91,1,91,3],[91,4,91,31],[91,32,91,40],[91,41,91,49],[90,1,90,3],[90,4,90,31],[90,32,90,40],[90,41,90,49],[89,1,89,3],[93,4,93,31],[71,50,71,56],[72,50,72,56],[70,50,70,56],[69,50,69,56],[75,1,75,3],[80,4,80,31],[80,32,80,40],[80,41,80,49],[79,1,79,3],[79,4,79,31],[79,32,79,40],[79,41,79,49],[78,1,78,3],[78,4,78,31],[78,32,78,40],[78,41,78,49],[74,1,74,3],[74,4,74,31],[74,32,74,40],[74,41,74,49],[74,50,74,56],[72,1,72,3],[72,4,72,31],[72,32,72,40],[72,41,72,49],[70,1,70,3],[70,4,70,31],[70,32,70,40],[70,41,70,49],[69,1,69,3],[69,4,69,31],[69,32,69,40],[69,41,69,49],[68,1,68,3],[68,4,68,31],[68,32,68,40],[68,41,68,49],[67,1,67,3],[71,1,71,3],[71,4,71,31],[71,32,71,40],[71,41,71,49],[64,1,64,3],[63,1,63,3],[63,4,63,31],[63,32,63,40],[63,41,63,49],[64,4,64,31],[64,32,64,40],[64,41,64,49],[64,50,64,56],[67,4,67,31],[67,32,67,40],[67,41,67,49],[66,1,66,3],[66,4,66,31],[66,32,66,40],[66,41,66,49],[65,1,65,3],[65,4,65,31],[65,32,65,40],[65,41,65,49],[63,50,63,56],[66,50,66,56],[65,50,65,56],[67,50,67,56],[50,41,50,49],[50,50,50,56],[62,1,62,56],[55,1,57,15],[55,16,55,41],[56,16,56,41],[56,42,56,50],[56,51,56,56],[57,16,57,41],[57,42,57,50],[57,51,57,52],[57,53,57,54],[60,1,61,3],[60,4,61,31],[60,32,61,39],[60,40,61,49],[50,1,50,3],[43,1,43,3],[43,4,43,31],[43,32,43,40],[43,41,43,49],[43,50,43,56],[42,1,42,3],[42,4,42,31],[42,32,42,40],[42,41,42,49],[42,50,42,56],[45,1,45,3],[45,4,45,31],[45,32,45,40],[45,41,45,49],[45,50,45,56],[44,1,44,3],[44,4,44,31],[44,32,44,40],[44,41,44,49],[44,50,44,56],[38,1,38,3],[38,4,38,31],[38,32,38,40],[38,41,38,49],[38,50,38,56],[37,1,37,3],[37,4,37,31],[37,32,37,40],[37,41,37,49],[37,50,37,56],[41,1,41,3],[41,4,41,31],[41,32,41,40],[41,41,41,49],[41,50,41,56],[40,1,40,56],[39,1,39,3],[39,4,39,31],[39,32,39,40],[39,41,39,49],[39,50,39,56],[34,32,34,40],[34,41,34,49],[34,50,34,56],[33,1,33,3],[33,4,33,31],[33,32,33,40],[33,41,33,49],[33,50,33,56],[36,1,36,3],[36,4,36,31],[36,32,36,40],[36,41,36,49],[36,50,36,56],[35,1,35,3],[35,4,35,31],[35,32,35,40],[35,41,35,49],[35,50,35,56],[2,55,2,56],[3,1,3,56],[4,1,4,56],[5,1,5,56],[0,1,2,15],[0,16,0,41],[1,16,1,41],[1,42,1,50],[1,51,1,56],[2,16,2,41],[2,42,2,50],[2,51,2,52],[2,53,2,54],[0,42,0,50],[0,51,0,52],[0,53,0,54],[0,55,0,56],[128,1,128,49],[128,50,128,56],[12,1,12,56],[13,1,13,56],[11,1,11,12],[24,1,24,3],[24,4,24,31],[24,32,24,40],[24,41,24,49],[24,50,24,56],[25,1,25,3],[20,1,20,3],[16,1,16,56],[20,4,20,31],[19,4,19,31],[23,1,23,3],[23,4,23,31],[23,32,23,40],[23,41,23,49],[27,1,27,3],[27,4,27,31],[46,4,46,31],[29,1,29,3],[29,4,29,31],[29,32,29,40],[29,41,29,49],[29,50,29,56],[28,1,28,3],[28,4,28,31],[28,32,28,40],[28,41,28,49],[28,50,28,56],[6,22,6,26],[6,27,6,41],[7,7,7,56],[6,1,6,6],[6,42,6,46],[6,47,6,56],[6,7,6,21],[46,50,46,56],[47,50,47,56],[17,50,17,56],[19,50,19,56],[20,50,20,56],[14,1,15,3],[14,4,15,31],[14,32,15,39],[14,40,15,49],[21,50,21,56],[17,32,17,40],[19,32,19,40],[20,32,20,40],[17,4,17,31],[17,1,17,3],[19,1,19,3],[46,1,46,3],[8,1,8,56],[7,1,7,6],[32,1,32,3],[32,4,32,31],[32,32,32,40],[32,41,32,49],[32,50,32,56],[31,1,31,56],[9,1,9,56],[11,38,11,43],[11,44,11,56],[11,13,11,37],[17,41,17,49],[19,41,19,49],[20,41,20,49],[10,1,10,12],[10,13,10,56],[14,50,15,56],[46,32,46,40],[46,41,46,49],[47,1,47,3],[47,4,47,31],[47,32,47,40],[47,41,47,49],[21,32,21,40],[22,1,22,56],[23,50,23,56],[21,1,21,3],[21,4,21,31],[21,41,21,49],[27,32,27,40],[27,41,27,49],[27,50,27,56],[25,4,25,31],[25,32,25,40],[25,41,25,49],[25,50,25,56],[26,1,26,3],[26,4,26,31],[26,32,26,40],[30,58,30,66],[32,67,32,73],[33,67,33,73],[34,67,34,73],[35,67,35,73],[36,67,36,73],[32,58,32,66],[33,58,33,66],[34,58,34,66],[35,58,35,66],[36,58,36,66],[14,58,15,66],[18,1,18,3],[18,4,18,31],[18,32,18,40],[18,41,18,49],[18,50,18,56],[26,67,26,73],[27,67,27,73],[28,67,28,73],[26,58,26,66],[27,58,27,66],[28,58,28,66],[26,41,26,49],[26,50,26,56],[30,1,30,3],[30,4,30,31],[30,32,30,40],[30,41,30,49],[30,50,30,56],[34,1,34,3],[34,4,34,31],[43,67,43,73],[44,67,44,73],[45,67,45,73],[46,67,46,73],[47,67,47,73],[43,58,43,66],[44,58,44,66],[45,58,45,66],[46,58,46,66],[47,58,47,66],[37,67,37,73],[38,67,38,73],[39,67,39,73],[41,67,41,73],[42,67,42,73],[37,58,37,66],[38,58,38,66],[39,58,39,66],[41,58,41,66],[42,58,42,66],[55,59,55,67],[55,68,55,69],[55,70,55,71],[55,72,55,73],[56,59,56,67],[56,68,56,73],[57,59,57,67],[57,68,57,69],[57,70,57,71],[57,72,57,73],[60,58,61,66],[48,67,48,73],[49,67,49,73],[50,67,50,73],[51,67,51,73],[53,67,53,73],[48,58,48,66],[49,58,49,66],[50,58,50,66],[51,58,51,66],[53,58,53,66],[52,67,52,73],[67,67,67,73],[68,67,68,73],[69,67,69,73],[70,67,70,73],[72,67,72,73],[67,58,67,66],[68,58,68,66],[69,58,69,66],[70,58,70,66],[72,58,72,66],[63,67,63,73],[64,67,64,73],[65,67,65,73],[66,67,66,73],[63,58,63,66],[64,58,64,66],[65,58,65,66],[66,58,66,66],[90,67,90,73],[86,58,86,66],[87,58,87,66],[88,58,88,66],[89,58,89,66],[90,58,90,66],[79,67,79,73],[80,67,80,73],[81,67,81,73],[83,67,83,73],[85,67,85,73],[79,58,79,66],[80,58,80,66],[81,58,81,66],[83,58,83,66],[85,58,85,66],[74,67,74,73],[75,67,75,73],[76,67,76,73],[77,67,77,73],[78,67,78,73],[74,58,74,66],[75,58,75,66],[76,58,76,66],[77,58,77,66],[78,58,78,66],[20,58,20,66],[20,67,20,73],[20,74,20,80],[21,74,21,80],[124,58,124,66],[125,58,125,66],[126,58,126,66],[118,67,118,73],[119,67,119,73],[120,67,120,73],[121,67,121,73],[118,58,118,66],[119,58,119,66],[120,58,120,66],[121,58,121,66],[91,67,91,73],[92,67,92,73],[94,67,94,73],[116,67,116,73],[117,67,117,73],[91,58,91,66],[92,58,92,66],[94,58,94,66],[116,58,116,66],[117,58,117,66],[96,58,96,66],[96,67,96,73],[100,58,100,66],[100,67,100,73],[104,58,104,66],[104,67,104,73],[108,59,108,67],[0,59,0,67],[0,68,0,69],[0,70,0,71],[0,72,0,73],[1,59,1,67],[1,68,1,73],[2,59,2,67],[2,68,2,69],[2,70,2,71],[2,72,2,73],[6,59,6,63],[6,64,6,73],[11,61,11,73],[17,58,17,66],[17,67,17,73],[19,58,19,66],[19,67,19,73],[23,74,23,80],[24,74,24,80],[25,74,25,80],[26,74,26,80],[27,74,27,80],[28,74,28,80],[0,75,0,76],[0,77,0,78],[0,79,0,80],[1,75,1,80],[2,75,2,76],[2,77,2,78],[2,79,2,80],[17,74,17,80],[19,74,19,80],[29,74,29,80],[30,74,30,80],[42,74,42,80],[43,74,43,80],[44,74,44,80],[45,74,45,80],[46,74,46,80],[47,74,47,80],[48,74,48,80],[49,74,49,80],[50,74,50,80],[32,74,32,80],[33,74,33,80],[34,74,34,80],[35,74,35,80],[36,74,36,80],[37,74,37,80],[38,74,38,80],[39,74,39,80],[41,74,41,80],[63,74,63,80],[64,74,64,80],[65,74,65,80],[66,74,66,80],[67,74,67,80],[68,74,68,80],[69,74,69,80],[70,74,70,80],[51,74,51,80],[53,74,53,80],[55,75,55,76],[55,77,55,78],[55,79,55,80],[56,75,56,80],[57,75,57,76],[57,77,57,78],[57,79,57,80],[52,74,52,80],[126,67,126,73],[123,58,123,66],[83,74,83,80],[85,74,85,80],[86,74,86,80],[87,74,87,80],[88,74,88,80],[89,74,89,80],[90,74,90,80],[91,74,91,80],[92,74,92,80],[72,74,72,80],[74,74,74,80],[75,74,75,80],[76,74,76,80],[77,74,77,80],[78,74,78,80],[79,74,79,80],[80,74,80,80],[81,74,81,80],[122,58,122,66],[108,68,108,69],[108,70,108,71],[108,72,108,73],[110,59,110,67],[110,68,110,69],[110,70,110,71],[110,72,110,73],[86,67,86,73],[87,67,87,73],[88,67,88,73],[89,67,89,73],[0,84,0,92],[0,93,0,94],[0,95,0,96],[0,97,0,98],[1,84,1,92],[1,93,1,98],[2,84,2,92],[2,93,2,94],[2,95,2,96],[2,97,2,98],[128,58,128,66],[123,74,123,80],[124,74,124,80],[125,74,125,80],[126,74,126,80],[127,74,127,80],[128,74,128,80],[94,74,94,80],[116,74,116,80],[117,74,117,80],[118,74,118,80],[119,74,119,80],[120,74,120,80],[121,74,121,80],[122,74,122,80],[127,58,127,66],[127,67,127,73],[128,67,128,73],[122,67,122,73],[123,67,123,73],[124,67,124,73],[125,67,125,73],[20,83,20,91],[20,92,20,98],[21,83,21,91],[21,92,21,98],[23,83,23,91],[23,92,23,98],[24,83,24,91],[24,92,24,98],[25,83,25,91],[25,92,25,98],[6,84,6,88],[6,89,6,98],[11,86,11,98],[14,83,15,91],[17,83,17,91],[17,92,17,98],[18,83,18,91],[18,92,18,98],[19,83,19,91],[19,92,19,98],[32,83,32,91],[32,92,32,98],[33,83,33,91],[33,92,33,98],[34,83,34,91],[34,92,34,98],[35,83,35,91],[35,92,35,98],[36,83,36,91],[36,92,36,98],[26,83,26,91],[26,92,26,98],[27,83,27,91],[27,92,27,98],[28,83,28,91],[28,92,28,98],[29,83,29,91],[29,92,29,98],[30,83,30,91],[30,92,30,98],[43,83,43,91],[43,92,43,98],[44,83,44,91],[44,92,44,98],[45,83,45,91],[45,92,45,98],[46,83,46,91],[46,92,46,98],[47,83,47,91],[47,92,47,98],[37,83,37,91],[37,92,37,98],[38,83,38,91],[38,92,38,98],[39,83,39,91],[39,92,39,98],[41,83,41,91],[41,92,41,98],[42,83,42,91],[42,92,42,98],[53,83,53,91],[53,92,53,98],[55,84,55,92],[55,93,55,94],[55,95,55,96],[55,97,55,98],[56,84,56,92],[56,93,56,98],[57,84,57,92],[57,93,57,94],[57,95,57,96],[57,97,57,98],[48,83,48,91],[48,92,48,98],[49,83,49,91],[49,92,49,98],[50,83,50,91],[50,92,50,98],[51,83,51,91],[51,92,51,98],[52,83,52,91],[52,92,52,98],[67,83,67,91],[67,92,67,98],[68,83,68,91],[68,92,68,98],[69,83,69,91],[69,92,69,98],[70,83,70,91],[70,92,70,98],[71,83,71,91],[71,92,71,98],[60,83,61,91],[63,83,63,91],[63,92,63,98],[64,83,64,91],[64,92,64,98],[65,83,65,91],[65,92,65,98],[66,83,66,91],[66,92,66,98],[78,83,78,91],[78,92,78,98],[79,83,79,91],[79,92,79,98],[80,83,80,91],[80,92,80,98],[81,83,81,91],[81,92,81,98],[82,83,82,91],[82,92,82,98],[72,83,72,91],[72,92,72,98],[74,83,74,91],[74,92,74,98],[75,83,75,91],[75,92,75,98],[76,83,76,91],[76,92,76,98],[77,83,77,91],[77,92,77,98],[89,83,89,91],[89,92,89,98],[90,83,90,91],[90,92,90,98],[91,83,91,91],[91,92,91,98],[92,83,92,91],[92,92,92,98],[93,83,93,91],[93,92,93,98],[83,83,83,91],[83,92,83,98],[85,83,85,91],[85,92,85,98],[86,83,86,91],[86,92,86,98],[87,83,87,91],[87,92,87,98],[88,83,88,91],[88,92,88,98]],"merged_total":1061,"flags":["merged_cut"]}
[null,null,null,null,null,null,null,null,null,null,null,null,null,null,null,null,"KENTUCKY TRANSPORTATION CABINET",null,null,null,null,null,null,null,null,null,null,null,null,null,null,null,null,null,null,null,null,null,null,null,null,null,"Page",null,null,null,null,null,null,null,null,1,null,"of",null,3]
[null,null,null,null,null,null,null,null,null,null,null,null,null,null,null,null,"Department of Highways",null,null,null,null,null,null,null,null,null,null,null,null,null,null,null,null,null,null,null,null,null,null,null,null,null,"Rev.",null,null,null,null,null,null,null,null,"07/2023"]
[null,null,null,null,null,null,null,null,null,null,null,null,null,null,null,null,"DIVISION OF RIGHT-OF-WAY SERVICES"]
[null,"RIGHT-OF-WAY PRODUCTION-HOUR WORKSHEET"]
[]
[null,"  SECTION 1:  PROJECT INFORMATION"]
[null,"COUNTY:",null,null,null,null,null,null,null,null,null,null,null,null,null,null,null,null,null,null,null,null,"ROUTE:",null,null,null,null,null,null,null,null,null,null,null,null,null,null,null,null,null,null,null,"ITEM #:",null,null,null,null,""]
[null,"DESC:"]
[]
[null,"  SECTION 2:  CONSULTANT INFORMATION"]
[null,"CONSULTANT:"]
[null,"PREPARED BY:",null,null,null,null,null,null,null,null,null,null,null,null,null,null,null,null,null,null,null,null,null,null,null,null,null,null,null,null,null,null,null,null,null,null,null,null,"DATE:",null,null,null,null,null,""]
[]
[null,"  SECTION 3:  PRODUCTION HOURS"]
[null,"No.",null,null,"ITEM",null,null,null,null,null,null,null,null,null,null,null,null,null,null,null,null,null,null,null,null,null,null,null,null,null,null,null,"Parcels/ Amount",null,null,null,null,null,null,null,"Hours per Parcel/Unit",null,null,null,null,null,null,null,null,null,"Total Hours",null,null,null,null,null,null,null,"Hours per Parcel/Unit",null,null,null,null,null,null,null,null,null,null,null,null,null,null,null,null,null,null,null,null,null,null,null,null,"Hours per Parcel/Unit"]
[null,null,null,null,null,null,null,null,null,null,null,null,null,null,null,null,null,null,null,null,null,null,null,null,null,null,null,null,null,null,null,null,null,null,null,null,null,null,null,null,null,null,null,null,null,null,null,null,null,null,null,null,null,null,null,null,null,null,null,null,null,null,null,null,null,null,null,"Total Hours",null,null,null,null,null,null," Difference",null,null,null,null,null,null,null,null,null,null,null,null,null,null,null,null,null,"NEGOTIATED"]
[null,"PROJECT PREPARATION",null,null,null,null,null,null,null,null,null,null,null,null,null,null,null,null,null,null,null,null,null,null,null,null,null,null,null,null,null,null,null,null,null,null,null,null,null,null,null,null,null,null,null,null,null,null,null,null,null,null,null,null,null,null,null,null,"PROJECT PREPARATION",null,null,null,null,null,null,null,null,null,null,null,null,null,null,null,null,null,null,null,null,null,null,null,null,"PROJECT PREPARATION"]
[null,1,null,null,"Project Report Development/Revisions",null,null,null,null,null,null,null,null,null,null,null,null,null,null,null,null,null,null,null,null,null,null,null,null,null,null,null,null,null,null,null,null,null,null,null,null,null,null,null,null,null,null,null,null,null,{"$f":"ROUND((AG18*AP18),0)","v":0},null,null,null,null,null,null,null,null,null,null,null,null,null,null,null,null,{"$f":"ROUND((AG18*BG18),0)","v":0},null,null,null,null,null,null,{"$f":"(BP18-AY18)","v":0},null,null,null,null,null,null,null,null,null,null,null,null,null,null,null,null,null,{"$f":"ROUND(AG18*CF18,0)","v":0}]
[null,2,null,null,"Public Meeting/Right of Way Meeting",null,null,null,null,null,null,null,null,null,null,null,null,null,null,null,null,null,null,null,null,null,null,null,null,null,null,null,null,null,null,null,null,null,null,null,null,null,null,null,null,null,null,null,null,null,{"$f":"ROUND((AG19*AP19),0)","v":0},null,null,null,null,null,null,null,null,null,null,null,null,null,null,null,null,{"$f":"ROUND((AG19*BG19),0)","v":0},null,null,null,null,null,null,{"$f":"(BP19-AY19)","v":0},null,null,null,null,null,null,null,null,null,null,null,null,null,null,null,null,null,{"$f":"ROUND(AG19*CF19,0)","v":0}]
[null,3,null,null,"Acquisition Stage Relocation Report and Updates (Each)",null,null,null,null,null,null,null,null,null,null,null,null,null,null,null,null,null,null,null,null,null,null,null,null,null,null,null,null,null,null,null,null,null,null,null,null,null,null,null,null,null,null,null,null,null,{"$f":"ROUND((AG20*AP20),0)","v":0},null,null,null,null,null,null,null,null,null,null,null,null,null,null,null,null,0,null,null,null,null,null,null,0,null,null,null,null,null,null,null,null,null,null,null,null,null,null,null,null,null,0]
[null,4,null,null,"Minor Acquisition Review - Value Range Preparation",null,null,null,null,null,null,null,null,null,null,null,null,null,null,null,null,null,null,null,null,null,null,null,null,null,null,null,null,null,null,null,null,null,null,null,null,null,null,null,null,null,null,null,null,null,{"$f":"ROUND((AG21*AP21),0)","v":0},null,null,null,null,null,null,null,null,null,null,null,null,null,null,null,null,0,null,null,null,null,null,null,0,null,null,null,null,null,null,null,null,null,null,null,null,null,null,null,null,null,0]
[null,5,null,null,"Title and Closing Attorney Coordination",null,null,null,null,null,null,null,null,null,null,null,null,null,null,null,null,null,null,null,null,null,null,null,null,null,null,null,null,null,null,null,null,null,null,null,null,null,null,null,null,null,null,null,null,null,{"$f":"ROUND((AG22*AP22),0)","v":0},null,null,null,null,null,null,null,null,null,null,null,null,null,null,null,null,0,null,null,null,null,null,null,0,null,null,null,null,null,null,null,null,null,null,null,null,null,null,null,null,null,0]
[null,"MINOR ACQUISITION",null,null,null,null,null,null,null,null,null,null,null,null,null,null,null,null,null,null,null,null,null,null,null,null,null,null,null,null,null,null,null,null,null,null,null,null,null,null,null,null,null,null,null,null,null,null,null,null,null,null,null,null,null,null,null,null,"MINOR ACQUISITION",null,null,null,null,null,null,null,null,null,null,null,null,null,null,null,null,null,null,null,null,null,null,null,null,"MINOR ACQUISITION"]
[null,6,null,null,"Initial Offer Meeting",null,null,null,null,null,null,null,null,null,null,null,null,null,null,null,null,null,null,null,null,null,null,null,null,null,null,null,null,null,null,null,null,null,null,null,null,null,null,null,null,null,null,null,null,null,{"$f":"ROUND((AG24*AP24),0)","v":0},null,null,null,null,null,null,null,null,null,null,null,null,null,null,null,null,{"$f":"ROUND((AG24*BG24),0)","v":0},null,null,null,null,null,null,{"$f":"(BP24-AY24)","v":0},null,null,null,null,null,null,null,null,null,null,null,null,null,null,null,null,null,{"$f":"ROUND(AG24*CF24,0)","v":0}]
[null,7,null,null,"Follow-Up Meeting(s)/Contacts",null,null,null,null,null,null,null,null,null,null,null,null,null,null,null,null,null,null,null,null,null,null,null,null,null,null,null,null,null,null,null,null,null,null,null,null,null,null,null,null,null,null,null,null,null,0,null,null,null,null,null,null,null,null,null,null,null,null,null,null,null,null,0,null,null,null,null,null,null,0,null,null,null,null,null,null,null,null,null,null,null,null,null,null,null,null,null,0]
[null,8,null,null,"Records of Contact",null,null,null,null,null,null,null,null,null,null,null,null,null,null,null,null,null,null,null,null,null,null,null,null,null,null,null,null,null,null,null,null,null,null,null,null,null,null,null,null,null,null,null,null,null,0,null,null,null,null,null,null,null,null,null,null,null,null,null,null,null,null,0,null,null,null,null,null,null,0,null,null,null,null,null,null,null,null,null,null,null,null,null,null,null,null,null,0]
[null,9,null,null,"Parcel File Documentation",null,null,null,null,null,null,null,null,null,null,null,null,null,null,null,null,null,null,null,null,null,null,null,null,null,null,null,null,null,null,null,null,null,null,null,null,null,null,null,null,null,null,null,null,null,0,null,null,null,null,null,null,null,null,null,null,null,null,null,null,null,null,0,null,null,null,null,null,null,0,null,null,null,null,null,null,null,null,null,null,null,null,null,null,null,null,null,0]
[null,10,null,null,"Payment Packet",null,null,null,null,null,null,null,null,null,null,null,null,null,null,null,null,null,null,null,null,null,null,null,null,null,null,null,null,null,null,null,null,null,null,null,null,null,null,null,null,null,null,null,null,null,0,null,null,null,null,null,null,null,null,null,null,null,null,null,null,null,null,0,null,null,null,null,null,null,0,null,null,null,null,null,null,null,null,null,null,null,null,null,null,null,null,null,0]
[null,11,null,null,"Check Delivery",null,null,null,null,null,null,null,null,null,null,null,null,null,null,null,null,null,null,null,null,null,null,null,null,null,null,null,null,null,null,null,null,null,null,null,null,null,null,null,null,null,null,null,null,null,0,null,null,null,null,null,null,null,null,null,null,null,null,null,null,null,null,0,null,null,null,null,null,null,0,null,null,null,null,null,null,null,null,null,null,null,null,null,null,null,null,null,0]
[null,12,null,null,"Pro-Rata Property Tax Reminder Letters/Payment Packet",null,null,null,null,null,null,null,null,null,null,null,null,null,null,null,null,null,null,null,null,null,null,null,null,null,null,null,null,null,null,null,null,null,null,null,null,null,null,null,null,null,null,null,null,null,0,null,null,null,null,null,null,null,null,null,null,null,null,null,null,null,null,0,null,null,null,null,null,null,0,null,null,null,null,null,null,null,null,null,null,null,null,null,null,null,null,null,0]
[null,13,null,null,"Condemnation Packet",null,null,null,null,null,null,null,null,null,null,null,null,null,null,null,null,null,null,null,null,null,null,null,null,null,null,null,null,null,null,null,null,null,null,null,null,null,null,null,null,null,null,null,null,null,0,null,null,null,null,null,null,null,null,null,null,null,null,null,null,null,null,0,null,null,null,null,null,null,0,null,null,null,null,null,null,null,null,null,null,null,null,null,null,null,null,null,0]
[null,"COMPLEX ACQUISITION",null,null,null,null,null,null,null,null,null,null,null,null,null,null,null,null,null,null,null,null,null,null,null,null,null,null,null,null,null,null,null,null,null,null,null,null,null,null,null,null,null,null,null,null,null,null,null,null,null,null,null,null,null,null,null,null,"COMPLEX ACQUISITION",null,null,null,null,null,null,null,null,null,null,null,null,null,null,null,null,null,null,null,null,null,null,null,null,"COMPLEX ACQUISITION"]
[null,14,null,null,"Initial Offer Meeting",null,null,null,null,null,null,null,null,null,null,null,null,null,null,null,null,null,null,null,null,null,null,null,null,null,null,null,null,null,null,null,null,null,null,null,null,null,null,null,null,null,null,null,null,null,{"$f":"ROUND((AG33*AP33),0)","v":0},null,null,null,null,null,null,null,null,null,null,null,null,null,null,null,null,{"$f":"ROUND((AG33*BG33),0)","v":0},null,null,null,null,null,null,{"$f":"(BP33-AY33)","v":0},null,null,null,null,null,null,null,null,null,null,null,null,null,null,null,null,null,{"$f":"ROUND(AG33*CF33,0)","v":0}]
[null,15,null,null,"Follow-Up Meeting(s)/Contacts",null,null,null,null,null,null,null,null,null,null,null,null,null,null,null,null,null,null,null,null,null,null,null,null,null,null,null,null,null,null,null,null,null,null,null,null,null,null,null,null,null,null,null,null,null,0,null,null,null,null,null,null,null,null,null,null,null,null,null,null,null,null,0,null,null,null,null,null,null,0,null,null,null,null,null,null,null,null,null,null,null,null,null,null,null,null,null,0]
[null,16,null,null,"Records of Contact",null,null,null,null,null,null,null,null,null,null,null,null,null,null,null,null,null,null,null,null,null,null,null,null,null,null,null,null,null,null,null,null,null,null,null,null,null,null,null,null,null,null,null,null,null,0,null,null,null,null,null,null,null,null,null,null,null,null,null,null,null,null,0,null,null,null,null,null,null,0,null,null,null,null,null,null,null,null,null,null,null,null,null,null,null,null,null,0]
[null,17,null,null,"Parcel File Documentation",null,null,null,null,null,null,null,null,null,null,null,null,null,null,null,null,null,null,null,null,null,null,null,null,null,null,null,null,null,null,null,null,null,null,null,null,null,null,null,null,null,null,null,null,null,0,null,null,null,null,null,null,null,null,null,null,null,null,null,null,null,null,0,null,null,null,null,null,null,0,null,null,null,null,null,null,null,null,null,null,null,null,null,null,null,null,null,0]
[null,18,null,null,"Payment Packet",null,null,null,null,null,null,null,null,null,null,null,null,null,null,null,null,null,null,null,null,null,null,null,null,null,null,null,null,null,null,null,null,null,null,null,null,null,null,null,null,null,null,null,null,null,0,null,null,null,null,null,null,null,null,null,null,null,null,null,null,null,null,0,null,null,null,null,null,null,0,null,null,null,null,null,null,null,null,null,null,null,null,null,null,null,null,null,0]
[null,19,null,null,"Check Delivery",null,null,null,null,null,null,null,null,null,null,null,null,null,null,null,null,null,null,null,null,null,null,null,null,null,null,null,null,null,null,null,null,null,null,null,null,null,null,null,null,null,null,null,null,null,0,null,null,null,null,null,null,null,null,null,null,null,null,null,null,null,null,0,null,null,null,null,null,null,0,null,null,null,null,null,null,null,null,null,null,null,null,null,null,null,null,null,0]
[null,20,null,null,"Pro-Rata Property Tax Reminder Letters/Payment Packet",null,null,null,null,null,null,null,null,null,null,null,null,null,null,null,null,null,null,null,null,null,null,null,null,null,null,null,null,null,null,null,null,null,null,null,null,null,null,null,null,null,null,null,null,null,0,null,null,null,null,null,null,null,null,null,null,null,null,null,null,null,null,0,null,null,null,null,null,null,0,null,null,null,null,null,null,null,null,null,null,null,null,null,null,null,null,null,0]
[null,21,null,null,"Condemnation Packet",null,null,null,null,null,null,null,null,null,null,null,null,null,null,null,null,null,null,null,null,null,null,null,null,null,null,null,null,null,null,null,null,null,null,null,null,null,null,null,null,null,null,null,null,null,0,null,null,null,null,null,null,null,null,null,null,null,null,null,null,null,null,0,null,null,null,null,null,null,0,null,null,null,null,null,null,null,null,null,null,null,null,null,null,null,null,null,0]
[null,"RESIDENTIAL RELOCATION",null,null,null,null,null,null,null,null,null,null,null,null,null,null,null,null,null,null,null,null,null,null,null,null,null,null,null,null,null,null,null,null,null,null,null,null,null,null,null,null,null,null,null,null,null,null,null,null,null,null,null,null,null,null,null,null,"RESIDENTIAL RELOCATION",null,null,null,null,null,null,null,null,null,null,null,null,null,null,null,null,null,null,null,null,null,null,null,null,"RESIDENTIAL RELOCATION"]
[null,22,null,null,"Initial Worksheet and Meeting",null,null,null,null,null,null,null,null,null,null,null,null,null,null,null,null,null,null,null,null,null,null,null,null,null,null,null,null,null,null,null,null,null,null,null,null,null,null,null,null,null,null,null,null,null,{"$f":"ROUND((AG42*AP42),0)","v":0},null,null,null,null,null,null,null,null,null,null,null,null,null,null,null,null,{"$f":"ROUND((AG42*BG42),0)","v":0},null,null,null,null,null,null,{"$f":"(BP42-AY42)","v":0},null,null,null,null,null,null,null,null,null,null,null,null,null,null,null,null,null,{"$f":"ROUND(AG42*CF42,0)","v":0}]
[null,23,null,null,"Certified Inventory",null,null,null,null,null,null,null,null,null,null,null,null,null,null,null,null,null,null,null,null,null,null,null,null,null,null,null,null,null,null,null,null,null,null,null,null,null,null,null,null,null,null,null,null,null,0,null,null,null,null,null,null,null,null,null,null,null,null,null,null,null,null,0,null,null,null,null,null,null,0,null,null,null,null,null,null,null,null,null,null,null,null,null,null,null,null,null,0]
[null,24,null,null,"Worksheet Update",null,null,null,null,null,null,null,null,null,null,null,null,null,null,null,null,null,null,null,null,null,null,null,null,null,null,null,null,null,null,null,null,null,null,null,null,null,null,null,null,null,null,null,null,null,0,null,null,null,null,null,null,null,null,null,null,null,null,null,null,null,null,0,null,null,null,null,null,null,0,null,null,null,null,null,null,null,null,null,null,null,null,null,null,null,null,null,0]
[null,25,null,null,"RHP/RAP Computations",null,null,null,null,null,null,null,null,null,null,null,null,null,null,null,null,null,null,null,null,null,null,null,null,null,null,null,null,null,null,null,null,null,null,null,null,null,null,null,null,null,null,null,null,null,0,null,null,null,null,null,null,null,null,null,null,null,null,null,null,null,null,0,null,null,null,null,null,null,0,null,null,null,null,null,null,null,null,null,null,null,null,null,null,null,null,null,0]
[null,26,null,null,"Relocation Offer Meeting",null,null,null,null,null,null,null,null,null,null,null,null,null,null,null,null,null,null,null,null,null,null,null,null,null,null,null,null,null,null,null,null,null,null,null,null,null,null,null,null,null,null,null,null,null,0,null,null,null,null,null,null,null,null,null,null,null,null,null,null,null,null,0,null,null,null,null,null,null,0,null,null,null,null,null,null,null,null,null,null,null,null,null,null,null,null,null,0]
[null,27,null,null,"Advisory Services",null,null,null,null,null,null,null,null,null,null,null,null,null,null,null,null,null,null,null,null,null,null,null,null,null,null,null,null,null,null,null,null,null,null,null,null,null,null,null,null,null,null,null,null,null,0,null,null,null,null,null,null,null,null,null,null,null,null,null,null,null,null,0,null,null,null,null,null,null,0,null,null,null,null,null,null,null,null,null,null,null,null,null,null,null,null,null,0]
[null,28,null,null,"Move Estimates/Bids",null,null,null,null,null,null,null,null,null,null,null,null,null,null,null,null,null,null,null,null,null,null,null,null,null,null,null,null,null,null,null,null,null,null,null,null,null,null,null,null,null,null,null,null,null,0,null,null,null,null,null,null,null,null,null,null,null,null,null,null,null,null,0,null,null,null,null,null,null,0,null,null,null,null,null,null,null,null,null,null,null,null,null,null,null,null,null,0]
[null,29,null,null,"Move Verification/Monitoring",null,null,null,null,null,null,null,null,null,null,null,null,null,null,null,null,null,null,null,null,null,null,null,null,null,null,null,null,null,null,null,null,null,null,null,null,null,null,null,null,null,null,null,null,null,0,null,null,null,null,null,null,null,null,null,null,null,null,null,null,null,null,0,null,null,null,null,null,null,0,null,null,null,null,null,null,null,null,null,null,null,null,null,null,null,null,null,0]
[null,30,null,null,"DS&S Inspections",null,null,null,null,null,null,null,null,null,null,null,null,null,null,null,null,null,null,null,null,null,null,null,null,null,null,null,null,null,null,null,null,null,null,null,null,null,null,null,null,null,null,null,null,null,0,null,null,null,null,null,null,null,null,null,null,null,null,null,null,null,null,0,null,null,null,null,null,null,0,null,null,null,null,null,null,null,null,null,null,null,null,null,null,null,null,null,0]
[null,31,null,null,"Records of Contact",null,null,null,null,null,null,null,null,null,null,null,null,null,null,null,null,null,null,null,null,null,null,null,null,null,null,null,null,null,null,null,null,null,null,null,null,null,null,null,null,null,null,null,null,null,0,null,null,null,null,null,null,null,null,null,null,null,null,null,null,null,null,0,null,null,null,null,null,null,0,null,null,null,null,null,null,null,null,null,null,null,null,null,null,null,null,null,0]
[null,32,null,null,"Parcel File Documentation",null,null,null,null,null,null,null,null,null,null,null,null,null,null,null,null,null,null,null,null,null,null,null,null,null,null,null,null,null,null,null,null,null,null,null,null,null,null,null,null,null,null,null,null,null,0,null,null,null,null,null,null,null,null,null,null,null,null,null,null,null,null,0,null,null,null,null,null,null,0,null,null,null,null,null,null,null,null,null,null,null,null,null,null,null,null,null,0]
[null,33,null,null,"Payment Packet",null,null,null,null,null,null,null,null,null,null,null,null,null,null,null,null,null,null,null,null,null,null,null,null,null,null,null,null,null,null,null,null,null,null,null,null,null,null,null,null,null,null,null,null,null,{"$f":"ROUND((AG53*AP53),0)","v":0},null,null,null,null,null,null,null,null,null,null,null,null,null,null,null,null,{"$f":"ROUND((AG53*BG53),0)","v":0},null,null,null,null,null,null,{"$f":"(BP53-AY53)","v":0},null,null,null,null,null,null,null,null,null,null,null,null,null,null,null,null,null,0]
[null,34,null,null,"Check Delivery",null,null,null,null,null,null,null,null,null,null,null,null,null,null,null,null,null,null,null,null,null,null,null,null,null,null,null,null,null,null,null,null,null,null,null,null,null,null,null,null,null,null,null,null,null,0,null,null,null,null,null,null,null,null,null,null,null,null,null,null,null,null,0,null,null,null,null,null,null,0,null,null,null,null,null,null,null,null,null,null,null,null,null,null,null,null,null,0]
[]
[null,null,null,null,null,null,null,null,null,null,null,null,null,null,null,null,"KENTUCKY TRANSPORTATION CABINET",null,null,null,null,null,null,null,null,null,null,null,null,null,null,null,null,null,null,null,null,null,null,null,null,null,"Page",null,null,null,null,null,null,null,null,2,null,"of",null,3]
[null,null,null,null,null,null,null,null,null,null,null,null,null,null,null,null,"Department of Highways"]
[null,null,null,null,null,null,null,null,null,null,null,null,null,null,null,null,"DIVISION OF RIGHT-OF-WAY SERVICES"]
[null,"RIGHT-OF-WAY PRODUCTION-HOUR WORKSHEET"]
[]
[null,"No.",null,null,"ITEM",null,null,null,null,null,null,null,null,null,null,null,null,null,null,null,null,null,null,null,null,null,null,null,null,null,null,null,"Parcels/ Amount",null,null,null,null,null,null,null,"Hours per Parcel/Unit",null,null,null,null,null,null,null,null,null,"Total\nHours",null,null,null,null,null,null,null,"Hours per Parcel/Unit",null,null,null,null,null,null,null,null,null,null,null,null,null,null,null,null,null,null,null,null,null,null,null,null,"Hours per Parcel/Unit"]
[null,null,null,null,null,null,null,null,null,null,null,null,null,null,null,null,null,null,null,null,null,null,null,null,null,null,null,null,null,null,null,null,null,null,null,null,null,null,null,null,null,null,null,null,null,null,null,null,null,null,null,null,null,null,null,null,null,null,null,null,null,null,null,null,null,null,null,"Total Hours",null,null,null,null,null,null," Difference",null,null,null,null,null,null,null,null,null,null,null,null,null,null,null,null,null,"Total Hours"]
[null,"COMMERCIAL/BUSINESS RELOCATION",null,null,null,null,null,null,null,null,null,null,null,null,null,null,null,null,null,null,null,null,null,null,null,null,null,null,null,null,null,null,null,null,null,null,null,null,null,null,null,null,null,null,null,null,null,null,null,null,null,null,null,null,null,null,null,null,"COMMERCIAL/BUSINESS RELOCATION",null,null,null,null,null,null,null,null,null,null,null,null,null,null,null,null,null,null,null,null,null,null,null,null,"COM/BUS RELOCATION"]
[null,35,null,null,"Initial Worksheet and Meeting",null,null,null,null,null,null,null,null,null,null,null,null,null,null,null,null,null,null,null,null,null,null,null,null,null,null,null,null,null,null,null,null,null,null,null,null,null,null,null,null,null,null,null,null,null,{"$f":"ROUND((AG64*AP64),0)","v":0},null,null,null,null,null,null,null,null,null,null,null,null,null,null,null,null,{"$f":"ROUND((AG64*BG64),0)","v":0},null,null,null,null,null,null,{"$f":"(BP64-AY64)","v":0},null,null,null,null,null,null,null,null,null,null,null,null,null,null,null,null,null,{"$f":"ROUND(AG64*CF64,0)","v":0}]
[null,36,null,null,"Certified Inventory",null,null,null,null,null,null,null,null,null,null,null,null,null,null,null,null,null,null,null,null,null,null,null,null,null,null,null,null,null,null,null,null,null,null,null,null,null,null,null,null,null,null,null,null,null,0,null,null,null,null,null,null,null,null,null,null,null,null,null,null,null,null,0,null,null,null,null,null,null,0,null,null,null,null,null,null,null,null,null,null,null,null,null,null,null,null,null,0]
[null,37,null,null,"Move Estimates/Bids",null,null,null,null,null,null,null,null,null,null,null,null,null,null,null,null,null,null,null,null,null,null,null,null,null,null,null,null,null,null,null,null,null,null,null,null,null,null,null,null,null,null,null,null,null,0,null,null,null,null,null,null,null,null,null,null,null,null,null,null,null,null,0,null,null,null,null,null,null,0,null,null,null,null,null,null,null,null,null,null,null,null,null,null,null,null,null,0]
[null,38,null,null,"Relocation Offer Meeting",null,null,null,null,null,null,null,null,null,null,null,null,null,null,null,null,null,null,null,null,null,null,null,null,null,null,null,null,null,null,null,null,null,null,null,null,null,null,null,null,null,null,null,null,null,0,null,null,null,null,null,null,null,null,null,null,null,null,null,null,null,null,0,null,null,null,null,null,null,0,null,null,null,null,null,null,null,null,null,null,null,null,null,null,null,null,null,0]
[null,39,null,null,"Advisory Services",null,null,null,null,null,null,null,null,null,null,null,null,null,null,null,null,null,null,null,null,null,null,null,null,null,null,null,null,null,null,null,null,null,null,null,null,null,null,null,null,null,null,null,null,null,0,null,null,null,null,null,null,null,null,null,null,null,null,null,null,null,null,0,null,null,null,null,null,null,0,null,null,null,null,null,null,null,null,null,null,null,null,null,null,null,null,null,0]
[null,40,null,null,"Move/Re-Establishment/In Lieu of Move",null,null,null,null,null,null,null,null,null,null,null,null,null,null,null,null,null,null,null,null,null,null,null,null,null,null,null,null,null,null,null,null,null,null,null,null,null,null,null,null,null,null,null,null,null,0,null,null,null,null,null,null,null,null,null,null,null,null,null,null,null,null,0,null,null,null,null,null,null,0,null,null,null,null,null,null,null,null,null,null,null,null,null,null,null,null,null,0]
[null,41,null,null,"Records of Contact",null,null,null,null,null,null,null,null,null,null,null,null,null,null,null,null,null,null,null,null,null,null,null,null,null,null,null,null,null,null,null,null,null,null,null,null,null,null,null,null,null,null,null,null,null,0,null,null,null,null,null,null,null,null,null,null,null,null,null,null,null,null,0,null,null,null,null,null,null,0,null,null,null,null,null,null,null,null,null,null,null,null,null,null,null,null,null,0]
[null,42,null,null,"Parcel File Documentation",null,null,null,null,null,null,null,null,null,null,null,null,null,null,null,null,null,null,null,null,null,null,null,null,null,null,null,null,null,null,null,null,null,null,null,null,null,null,null,null,null,null,null,null,null,0,null,null,null,null,null,null,null,null,null,null,null,null,null,null,null,null,0,null,null,null,null,null,null,0,null,null,null,null,null,null,null,null,null,null,null,null,null,null,null,null,null,0]
[null,43,null,null,"Payment Packet",null,null,null,null,null,null,null,null,null,null,null,null,null,null,null,null,null,null,null,null,null,null,null,null,null,null,null,null,null,null,null,null,null,null,null,null,null,null,null,null,null,null,null,null,null,{"$f":"ROUND((AG72*AP72),0)","v":0},null,null,null,null,null,null,null,null,null,null,null,null,null,null,null,null,{"$f":"ROUND((AG72*BG72),0)","v":0},null,null,null,null,null,null,{"$f":"(BP72-AY72)","v":0},null,null,null,null,null,null,null,null,null,null,null,null,null,null,null,null,null,0]
[null,44,null,null,"Check Delivery",null,null,null,null,null,null,null,null,null,null,null,null,null,null,null,null,null,null,null,null,null,null,null,null,null,null,null,null,null,null,null,null,null,null,null,null,null,null,null,null,null,null,null,null,null,0,null,null,null,null,null,null,null,null,null,null,null,null,null,null,null,null,0,null,null,null,null,null,null,0,null,null,null,null,null,null,null,null,null,null,null,null,null,null,null,null,null,0]
[null,"MISCELLANEOUS MOVE",null,null,null,null,null,null,null,null,null,null,null,null,null,null,null,null,null,null,null,null,null,null,null,null,null,null,null,null,null,null,null,null,null,null,null,null,null,null,null,null,null,null,null,null,null,null,null,null,null,null,null,null,null,null,null,null,"MISCELLANEOUS MOVE",null,null,null,null,null,null,null,null,null,null,null,null,null,null,null,null,null,null,null,null,null,null,null,null,"MISCELLANEOUS MOVE"]
[null,45,null,null,"Initial Worksheet and Meeting",null,null,null,null,null,null,null,null,null,null,null,null,null,null,null,null,null,null,null,null,null,null,null,null,null,null,null,null,null,null,null,null,null,null,null,null,null,null,null,null,null,null,null,null,null,{"$f":"ROUND((AG75*AP75),0)","v":0},null,null,null,null,null,null,null,null,null,null,null,null,null,null,null,null,{"$f":"ROUND((AG75*BG75),0)","v":0},null,null,null,null,null,null,{"$f":"(BP75-AY75)","v":0},null,null,null,null,null,null,null,null,null,null,null,null,null,null,null,null,null,{"$f":"ROUND(AG75*CF75,0)","v":0}]
[null,46,null,null,"Certified Inventory",null,null,null,null,null,null,null,null,null,null,null,null,null,null,null,null,null,null,null,null,null,null,null,null,null,null,null,null,null,null,null,null,null,null,null,null,null,null,null,null,null,null,null,null,null,0,null,null,null,null,null,null,null,null,null,null,null,null,null,null,null,null,0,null,null,null,null,null,null,0,null,null,null,null,null,null,null,null,null,null,null,null,null,null,null,null,null,0]
[null,47,null,null,"Move Estimates/Bids",null,null,null,null,null,null,null,null,null,null,null,null,null,null,null,null,null,null,null,null,null,null,null,null,null,null,null,null,null,null,null,null,null,null,null,null,null,null,null,null,null,null,null,null,null,0,null,null,null,null,null,null,null,null,null,null,null,null,null,null,null,null,0,null,null,null,null,null,null,0,null,null,null,null,null,null,null,null,null,null,null,null,null,null,null,null,null,0]
[null,48,null,null,"Relocation Offer Meeting",null,null,null,null,null,null,null,null,null,null,null,null,null,null,null,null,null,null,null,null,null,null,null,null,null,null,null,null,null,null,null,null,null,null,null,null,null,null,null,null,null,null,null,null,null,0,null,null,null,null,null,null,null,null,null,null,null,null,null,null,null,null,0,null,null,null,null,null,null,0,null,null,null,null,null,null,null,null,null,null,null,null,null,null,null,null,null,0]
[null,49,null,null,"Advisory Services",null,null,null,null,null,null,null,null,null,null,null,null,null,null,null,null,null,null,null,null,null,null,null,null,null,null,null,null,null,null,null,null,null,null,null,null,null,null,null,null,null,null,null,null,null,0,null,null,null,null,null,null,null,null,null,null,null,null,null,null,null,null,0,null,null,null,null,null,null,0,null,null,null,null,null,null,null,null,null,null,null,null,null,null,null,null,null,0]
[null,50,null,null,"Move Verification",null,null,null,null,null,null,null,null,null,null,null,null,null,null,null,null,null,null,null,null,null,null,null,null,null,null,null,null,null,null,null,null,null,null,null,null,null,null,null,null,null,null,null,null,null,0,null,null,null,null,null,null,null,null,null,null,null,null,null,null,null,null,0,null,null,null,null,null,null,0,null,null,null,null,null,null,null,null,null,null,null,null,null,null,null,null,null,0]
[null,51,null,null,"Records of Contact",null,null,null,null,null,null,null,null,null,null,null,null,null,null,null,null,null,null,null,null,null,null,null,null,null,null,null,null,null,null,null,null,null,null,null,null,null,null,null,null,null,null,null,null,null,0,null,null,null,null,null,null,null,null,null,null,null,null,null,null,null,null,0,null,null,null,null,null,null,0,null,null,null,null,null,null,null,null,null,null,null,null,null,null,null,null,null,0]
[null,52,null,null,"Parcel File Documentation",null,null,null,null,null,null,null,null,null,null,null,null,null,null,null,null,null,null,null,null,null,null,null,null,null,null,null,null,null,null,null,null,null,null,null,null,null,null,null,null,null,null,null,null,null,0,null,null,null,null,null,null,null,null,null,null,null,null,null,null,null,null,0,null,null,null,null,null,null,0,null,null,null,null,null,null,null,null,null,null,null,null,null,null,null,null,null,0]
[null,53,null,null,"Payment Packet",null,null,null,null,null,null,null,null,null,null,null,null,null,null,null,null,null,null,null,null,null,null,null,null,null,null,null,null,null,null,null,null,null,null,null,null,null,null,null,null,null,null,null,null,null,{"$f":"ROUND((AG83*AP83),0)","v":0},null,null,null,null,null,null,null,null,null,null,null,null,null,null,null,null,{"$f":"ROUND((AG83*BG83),0)","v":0},null,null,null,null,null,null,{"$f":"(BP83-AY83)","v":0},null,null,null,null,null,null,null,null,null,null,null,null,null,null,null,null,null,0]
[null,54,null,null,"Check Delivery",null,null,null,null,null,null,null,null,null,null,null,null,null,null,null,null,null,null,null,null,null,null,null,null,null,null,null,null,null,null,null,null,null,null,null,null,null,null,null,null,null,null,null,null,null,0,null,null,null,null,null,null,null,null,null,null,null,null,null,null,null,null,0,null,null,null,null,null,null,0,null,null,null,null,null,null,null,null,null,null,null,null,null,null,null,null,null,0]
[null,"OUTDOOR ADVERTISING RELOCATION",null,null,null,null,null,null,null,null,null,null,null,null,null,null,null,null,null,null,null,null,null,null,null,null,null,null,null,null,null,null,null,null,null,null,null,null,null,null,null,null,null,null,null,null,null,null,null,null,null,null,null,null,null,null,null,null,"OUTDOOR ADVERTISING RELOCATION",null,null,null,null,null,null,null,null,null,null,null,null,null,null,null,null,null,null,null,null,null,null,null,null,"OUTDOOR AD RELOCATION"]
[null,55,null,null,"Initial Worksheet and Meeting",null,null,null,null,null,null,null,null,null,null,null,null,null,null,null,null,null,null,null,null,null,null,null,null,null,null,null,null,null,null,null,null,null,null,null,null,null,null,null,null,null,null,null,null,null,{"$f":"ROUND((AG86*AP86),0)","v":0},null,null,null,null,null,null,null,null,null,null,null,null,null,null,null,null,{"$f":"ROUND((AG86*BG86),0)","v":0},null,null,null,null,null,null,{"$f":"(BP86-AY86)","v":0},null,null,null,null,null,null,null,null,null,null,null,null,null,null,null,null,null,{"$f":"ROUND(AG86*CF86,0)","v":0}]
[null,56,null,null,"Certified Inventory",null,null,null,null,null,null,null,null,null,null,null,null,null,null,null,null,null,null,null,null,null,null,null,null,null,null,null,null,null,null,null,null,null,null,null,null,null,null,null,null,null,null,null,null,null,0,null,null,null,null,null,null,null,null,null,null,null,null,null,null,null,null,0,null,null,null,null,null,null,0,null,null,null,null,null,null,null,null,null,null,null,null,null,null,null,null,null,0]
[null,57,null,null,"Move Estimates/Bids",null,null,null,null,null,null,null,null,null,null,null,null,null,null,null,null,null,null,null,null,null,null,null,null,null,null,null,null,null,null,null,null,null,null,null,null,null,null,null,null,null,null,null,null,null,0,null,null,null,null,null,null,null,null,null,null,null,null,null,null,null,null,0,null,null,null,null,null,null,0,null,null,null,null,null,null,null,null,null,null,null,null,null,null,null,null,null,0]
[null,58,null,null,"Relocation Offer Meeting",null,null,null,null,null,null,null,null,null,null,null,null,null,null,null,null,null,null,null,null,null,null,null,null,null,null,null,null,null,null,null,null,null,null,null,null,null,null,null,null,null,null,null,null,null,0,null,null,null,null,null,null,null,null,null,null,null,null,null,null,null,null,0,null,null,null,null,null,null,0,null,null,null,null,null,null,null,null,null,null,null,null,null,null,null,null,null,0]
[null,59,null,null,"Advisory Services",null,null,null,null,null,null,null,null,null,null,null,null,null,null,null,null,null,null,null,null,null,null,null,null,null,null,null,null,null,null,null,null,null,null,null,null,null,null,null,null,null,null,null,null,null,0,null,null,null,null,null,null,null,null,null,null,null,null,null,null,null,null,0,null,null,null,null,null,null,0,null,null,null,null,null,null,null,null,null,null,null,null,null,null,null,null,null,0]
[null,60,null,null,"Move Verification",null,null,null,null,null,null,null,null,null,null,null,null,null,null,null,null,null,null,null,null,null,null,null,null,null,null,null,null,null,null,null,null,null,null,null,null,null,null,null,null,null,null,null,null,null,0,null,null,null,null,null,null,null,null,null,null,null,null,null,null,null,null,0,null,null,null,null,null,null,0,null,null,null,null,null,null,null,null,null,null,null,null,null,null,null,null,null,0]
[null,61,null,null,"Records of Contact",null,null,null,null,null,null,null,null,null,null,null,null,null,null,null,null,null,null,null,null,null,null,null,null,null,null,null,null,null,null,null,null,null,null,null,null,null,null,null,null,null,null,null,null,null,0,null,null,null,null,null,null,null,null,null,null,null,null,null,null,null,null,0,null,null,null,null,null,null,0,null,null,null,null,null,null,null,null,null,null,null,null,null,null,null,null,null,0]
[null,62,null,null,"Parcel File Documentation",null,null,null,null,null,null,null,null,null,null,null,null,null,null,null,null,null,null,null,null,null,null,null,null,null,null,null,null,null,null,null,null,null,null,null,null,null,null,null,null,null,null,null,null,null,0,null,null,null,null,null,null,null,null,null,null,null,null,null,null,null,null,0,null,null,null,null,null,null,0,null,null,null,null,null,null,null,null,null,null,null,null,null,null,null,null,null,0]
[null,63,null,null,"Payment Packet",null,null,null,null,null,null,null,null,null,null,null,null,null,null,null,null,null,null,null,null,null,null,null,null,null,null,null,null,null,null,null,null,null,null,null,null,null,null,null,null,null,null,null,null,null,{"$f":"ROUND((AG94*AP94),0)","v":0},null,null,null,null,null,null,null,null,null,null,null,null,null,null,null,null,{"$f":"ROUND((AG94*BG94),0)","v":0},null,null,null,null,null,null,{"$f":"(BP94-AY94)","v":0},null,null,null,null,null,null,null,null,null,null,null,null,null,null,null,null,null,0]
[null,64,null,null,"Check Delivery",null,null,null,null,null,null,null,null,null,null,null,null,null,null,null,null,null,null,null,null,null,null,null,null,null,null,null,null,null,null,null,null,null,null,null,null,null,null,null,null,null,null,null,null,null,0,null,null,null,null,null,null,null,null,null,null,null,null,null,null,null,null,0,null,null,null,null,null,null,0,null,null,null,null,null,null,null,null,null,null,null,null,null,null,null,null,null,0]
[null,"PROPERTY MANAGEMENT",null,null,null,null,null,null,null,null,null,null,null,null,null,null,null,null,null,null,null,null,null,null,null,null,null,null,null,null,null,null,null,null,null,null,null,null,null,null,null,null,null,null,null,null,null,null,null,null,null,null,null,null,null,null,null,null,"PROPERTY MANAGEMENT",null,null,null,null,null,null,null,null,null,null,null,null,null,null,null,null,null,null,null,null,null,null,null,null,"PROPERTY MANAGEMENT"]
[null,65,null,null,"Inspect Parcels-Possible HAZMAT, UST’s or AST’s",null,null,null,null,null,null,null,null,null,null,null,null,null,null,null,null,null,null,null,null,null,null,null,null,null,null,null,null,null,null,null,null,null,null,null,null,null,null,null,null,null,null,null,null,null,{"$f":"ROUND((AG97*AP97),0)","v":0},null,null,null,null,null,null,null,null,null,null,null,null,null,null,null,null,{"$f":"ROUND((AG97*BG97),0)","v":0},null,null,null,null,null,null,{"$f":"(BP97-AY97)","v":0},null,null,null,null,null,null,null,null,null,null,null,null,null,null,null,null,null,{"$f":"ROUND(AG97*CF97,0)","v":0}]
[null,66,null,null,"Prepare-Project Summary Improvements Form w/salvage values w/ KYTC Approval",null,null,null,null,null,null,null,null,null,null,null,null,null,null,null,null,null,null,null,null,null,null,null,null,null,null,null,null,null,null,null,null,null,null,null,null,null,null,null,null,null,null,null,null,null,0,null,null,null,null,null,null,null,null,null,null,null,null,null,null,null,null,0,null,null,null,null,null,null,0,null,null,null,null,null,null,null,null,null,null,null,null,null,null,null,null,null,0]
[null,67,null,null,"Status Report of Improvements Updated as Needed",null,null,null,null,null,null,null,null,null,null,null,null,null,null,null,null,null,null,null,null,null,null,null,null,null,null,null,null,null,null,null,null,null,null,null,null,null,null,null,null,null,null,null,null,null,0,null,null,null,null,null,null,null,null,null,null,null,null,null,null,null,null,0,null,null,null,null,null,null,0,null,null,null,null,null,null,null,null,null,null,null,null,null,null,null,null,null,0]
[null,68,null,null,"Coordinate with KYTC for environmental remediation and ACM Removal",null,null,null,null,null,null,null,null,null,null,null,null,null,null,null,null,null,null,null,null,null,null,null,null,null,null,null,null,null,null,null,null,null,null,null,null,null,null,null,null,null,null,null,null,null,0,null,null,null,null,null,null,null,null,null,null,null,null,null,null,null,null,0,null,null,null,null,null,null,0,null,null,null,null,null,null,null,null,null,null,null,null,null,null,null,null,null,0]
[null,69,null,null,"Photographs and Inspection of Improvements",null,null,null,null,null,null,null,null,null,null,null,null,null,null,null,null,null,null,null,null,null,null,null,null,null,null,null,null,null,null,null,null,null,null,null,null,null,null,null,null,null,null,null,null,null,0,null,null,null,null,null,null,null,null,null,null,null,null,null,null,null,null,0,null,null,null,null,null,null,0,null,null,null,null,null,null,null,null,null,null,null,null,null,null,null,null,null,0]
[null,70,null,null,"Parcel File Documentation",null,null,null,null,null,null,null,null,null,null,null,null,null,null,null,null,null,null,null,null,null,null,null,null,null,null,null,null,null,null,null,null,null,null,null,null,null,null,null,null,null,null,null,null,null,0,null,null,null,null,null,null,null,null,null,null,null,null,null,null,null,null,0,null,null,null,null,null,null,0,null,null,null,null,null,null,null,null,null,null,null,null,null,null,null,null,null,0]
[null,71,null,null,"Coordinate Clearance from Right of Way",null,null,null,null,null,null,null,null,null,null,null,null,null,null,null,null,null,null,null,null,null,null,null,null,null,null,null,null,null,null,null,null,null,null,null,null,null,null,null,null,null,null,null,null,null,0,null,null,null,null,null,null,null,null,null,null,null,null,null,null,null,null,0,null,null,null,null,null,null,0,null,null,null,null,null,null,null,null,null,null,null,null,null,null,null,null,null,0]
[null,72,null,null,"Project Security of Improvements",null,null,null,null,null,null,null,null,null,null,null,null,null,null,null,null,null,null,null,null,null,null,null,null,null,null,null,null,null,null,null,null,null,null,null,null,null,null,null,null,null,null,null,null,null,0,null,null,null,null,null,null,null,null,null,null,null,null,null,null,null,null,0,null,null,null,null,null,null,0,null,null,null,null,null,null,null,null,null,null,null,null,null,null,null,null,null,0]
[null,73,null,null,"Coordinate Bid Preparation for Removal of Improvement through KYTC",null,null,null,null,null,null,null,null,null,null,null,null,null,null,null,null,null,null,null,null,null,null,null,null,null,null,null,null,null,null,null,null,null,null,null,null,null,null,null,null,null,null,null,null,null,0,null,null,null,null,null,null,null,null,null,null,null,null,null,null,null,null,0,null,null,null,null,null,null,0,null,null,null,null,null,null,null,null,null,null,null,null,null,null,null,null,null,0]
[null,74,null,null,"Monitor Removal of Improvements",null,null,null,null,null,null,null,null,null,null,null,null,null,null,null,null,null,null,null,null,null,null,null,null,null,null,null,null,null,null,null,null,null,null,null,null,null,null,null,null,null,null,null,null,null,0,null,null,null,null,null,null,null,null,null,null,null,null,null,null,null,null,0,null,null,null,null,null,null,0,null,null,null,null,null,null,null,null,null,null,null,null,null,null,null,null,null,0]
[null,75,null,null,"Project Close out for Improvement Removal",null,null,null,null,null,null,null,null,null,null,null,null,null,null,null,null,null,null,null,null,null,null,null,null,null,null,null,null,null,null,null,null,null,null,null,null,null,null,null,null,null,null,null,null,null,0,null,null,null,null,null,null,null,null,null,null,null,null,null,null,null,null,0,null,null,null,null,null,null,0,null,null,null,null,null,null,null,null,null,null,null,null,null,null,null,null,null,0]
[]
[null,null,null,null,null,null,null,null,null,null,null,null,null,null,null,null,"KENTUCKY TRANSPORTATION CABINET",null,null,null,null,null,null,null,null,null,null,null,null,null,null,null,null,null,null,null,null,null,null,null,null,null,"Page",null,null,null,null,null,null,null,null,3,null,"of",null,3]
[null,null,null,null,null,null,null,null,null,null,null,null,null,null,null,null,"Department of Highways"]
[null,null,null,null,null,null,null,null,null,null,null,null,null,null,null,null,"DIVISION OF RIGHT-OF-WAY SERVICES"]
[null,"RIGHT-OF-WAY PRODUCTION-HOUR WORKSHEET"]
[]
[null,"No.",null,null,"ITEM",null,null,null,null,null,null,null,null,null,null,null,null,null,null,null,null,null,null,null,null,null,null,null,null,null,null,null,"Parcels/ Amount",null,null,null,null,null,null,null,"Hours per Parcel/Unit",null,null,null,null,null,null,null,null,null,"Total\nHours",null,null,null,null,null,null,null,"Hours per Parcel/Unit",null,null,null,null,null,null,null,null,null,null,null,null,null,null,null,null,null,null,null,null,null,null,null,null,"Hours per Parcel/Unit"]
[null,null,null,null,null,null,null,null,null,null,null,null,null,null,null,null,null,null,null,null,null,null,null,null,null,null,null,null,null,null,null,null,null,null,null,null,null,null,null,null,null,null,null,null,null,null,null,null,null,null,null,null,null,null,null,null,null,null,null,null,null,null,null,null,null,null,null,"Total Hours",null,null,null,null,null,null," Difference",null,null,null,null,null,null,null,null,null,null,null,null,null,null,null,null,null,"Total Hours"]
[null,"ROW PROJECT MANAGEMENT",null,null,null,null,null,null,null,null,null,null,null,null,null,null,null,null,null,null,null,null,null,null,null,null,null,null,null,null,null,null,null,null,null,null,null,null,null,null,null,null,null,null,null,null,null,null,null,null,null,null,null,null,null,null,null,null,"ROW PROJECT MANAGEMENT",null,null,null,null,null,null,null,null,null,null,null,null,null,null,null,null,null,null,null,null,null,null,null,null,"ROW PROJECT MGMT"]
[null,76,null,null,"Parcel Review - Acquisition Payment Packet",null,null,null,null,null,null,null,null,null,null,null,null,null,null,null,null,null,null,null,null,null,null,null,null,null,null,null,null,null,null,null,null,null,null,null,null,null,null,null,null,null,null,null,null,null,{"$f":"ROUND((AG117*AP117),0)","v":0},null,null,null,null,null,null,null,null,null,null,null,null,null,null,null,null,{"$f":"ROUND((AG117*BG117),0)","v":0},null,null,null,null,null,null,{"$f":"(BP117-AY117)","v":0},null,null,null,null,null,null,null,null,null,null,null,null,null,null,null,null,null,{"$f":"ROUND(AG117*CF117,0)","v":0}]
[null,77,null,null,"Parcel Review - Condemnation Packet",null,null,null,null,null,null,null,null,null,null,null,null,null,null,null,null,null,null,null,null,null,null,null,null,null,null,null,null,null,null,null,null,null,null,null,null,null,null,null,null,null,null,null,null,null,0,null,null,null,null,null,null,null,null,null,null,null,null,null,null,null,null,0,null,null,null,null,null,null,0,null,null,null,null,null,null,null,null,null,null,null,null,null,null,null,null,null,0]
[null,78,null,null,"Parcel Review - Relocation Payment Packet",null,null,null,null,null,null,null,null,null,null,null,null,null,null,null,null,null,null,null,null,null,null,null,null,null,null,null,null,null,null,null,null,null,null,null,null,null,null,null,null,null,null,null,null,null,0,null,null,null,null,null,null,null,null,null,null,null,null,null,null,null,null,0,null,null,null,null,null,null,0,null,null,null,null,null,null,null,null,null,null,null,null,null,null,null,null,null,0]
[null,79,null,null,"Parcel Review - Tax Reimbursement Payment Packet",null,null,null,null,null,null,null,null,null,null,null,null,null,null,null,null,null,null,null,null,null,null,null,null,null,null,null,null,null,null,null,null,null,null,null,null,null,null,null,null,null,null,null,null,null,0,null,null,null,null,null,null,null,null,null,null,null,null,null,null,null,null,0,null,null,null,null,null,null,0,null,null,null,null,null,null,null,null,null,null,null,null,null,null,null,null,null,0]
[null,80,null,null,"Monthly Project Status Meetings and Preparation (Each)",null,null,null,null,null,null,null,null,null,null,null,null,null,null,null,null,null,null,null,null,null,null,null,null,null,null,null,null,null,null,null,null,null,null,null,null,null,null,null,null,null,null,null,null,null,0,null,null,null,null,null,null,null,null,null,null,null,null,null,null,null,null,0,null,null,null,null,null,null,0,null,null,null,null,null,null,null,null,null,null,null,null,null,null,null,null,null,0]
[null,81,null,null,"District Coordination",null,null,null,null,null,null,null,null,null,null,null,null,null,null,null,null,null,null,null,null,null,null,null,null,null,null,null,null,null,null,null,null,null,null,null,null,null,null,null,null,null,null,null,null,null,0,null,null,null,null,null,null,null,null,null,null,null,null,null,null,null,null,0,null,null,null,null,null,null,0,null,null,null,null,null,null,null,null,null,null,null,null,null,null,null,null,null,0]
[null,82,null,null,"Sub-Consultant Coordination - Appraisal (Each)",null,null,null,null,null,null,null,null,null,null,null,null,null,null,null,null,null,null,null,null,null,null,null,null,null,null,null,null,null,null,null,null,null,null,null,null,null,null,null,null,null,null,null,null,null,0,null,null,null,null,null,null,null,null,null,null,null,null,null,null,null,null,0,null,null,null,null,null,null,0,null,null,null,null,null,null,null,null,null,null,null,null,null,null,null,null,null,0]
[null,83,null,null,"Sub-Consultant Coordination - Appraisal Review (Each)",null,null,null,null,null,null,null,null,null,null,null,null,null,null,null,null,null,null,null,null,null,null,null,null,null,null,null,null,null,null,null,null,null,null,null,null,null,null,null,null,null,null,null,null,null,0,null,null,null,null,null,null,null,null,null,null,null,null,null,null,null,null,0,null,null,null,null,null,null,0,null,null,null,null,null,null,null,null,null,null,null,null,null,null,null,null,null,0]
[null,84,null,null,"Sub-Consultant Coordination - Acquisition (Each)",null,null,null,null,null,null,null,null,null,null,null,null,null,null,null,null,null,null,null,null,null,null,null,null,null,null,null,null,null,null,null,null,null,null,null,null,null,null,null,null,null,null,null,null,null,0,null,null,null,null,null,null,null,null,null,null,null,null,null,null,null,null,0,null,null,null,null,null,null,0,null,null,null,null,null,null,null,null,null,null,null,null,null,null,null,null,null,0]
[null,85,null,null,"Sub-Consultant Coordination - Relocation (Each)",null,null,null,null,null,null,null,null,null,null,null,null,null,null,null,null,null,null,null,null,null,null,null,null,null,null,null,null,null,null,null,null,null,null,null,null,null,null,null,null,null,null,null,null,null,0,null,null,null,null,null,null,null,null,null,null,null,null,null,null,null,null,0,null,null,null,null,null,null,0,null,null,null,null,null,null,null,null,null,null,null,null,null,null,null,null,null,0]
[null,86,null,null,"Invoicing (Each)",null,null,null,null,null,null,null,null,null,null,null,null,null,null,null,null,null,null,null,null,null,null,null,null,null,null,null,null,null,null,null,null,null,null,null,null,null,null,null,null,null,null,null,null,null,0,null,null,null,null,null,null,null,null,null,null,null,null,null,null,null,null,0,null,null,null,null,null,null,0,null,null,null,null,null,null,null,null,null,null,null,null,null,null,null,null,null,0]
[null,87,null,null,"Project Close-Out",null,null,null,null,null,null,null,null,null,null,null,null,null,null,null,null,null,null,null,null,null,null,null,null,null,null,null,null,null,null,null,null,null,null,null,null,null,null,null,null,null,null,null,null,null,0,null,null,null,null,null,null,null,null,null,null,null,null,null,null,null,null,0,null,null,null,null,null,null,0,null,null,null,null,null,null,null,null,null,null,null,null,null,null,null,null,null,0]
[null,"RIGHT OF WAY TOTAL",null,null,null,null,null,null,null,null,null,null,null,null,null,null,null,null,null,null,null,null,null,null,null,null,null,null,null,null,null,null,null,null,null,null,null,null,null,null,null,null,null,null,null,null,null,null,null,null,{"$f":"SUM(AY117:BE128,AY86:BE95,AY75:BE84,AY64:BE73,AY42:BE54,AY33:BE40,AY24:BE31,AY97:BE107,AY18:BE22)","v":0},null,null,null,null,null,null,null,"Totals",null,null,null,null,null,null,null,null,{"$f":"SUM(BP117:BV128,BP86:BV95,BP75:BV84,BP64:BV73,BP42:BV54,BP33:BV40,BP24:BV31,BP18:BV22)","v":0},null,null,null,null,null,null,{"$f":"SUM(BW117:CC128,BW86:CC95,BW75:CC84,BW64:CC73,BW42:CC54,BW33:CC40,BW24:CC31,BW97:CC107,BW18:CC22)","v":0},null,null,null,null,null,null,null,null,"Totals",null,null,null,null,null,null,null,null,{"$f":"SUM(CO117:CU128,CO86:CU95,CO75:CU84,CO64:CU73,CO42:CU54,CO33:CU40,CO24:CU31,CO97:CU107,CO18:CU22)","v":0}]

{"sheet":"Definitions","index":1,"n_rows":99,"n_cols":2,"rows_kept":99,"cut":false,"hidden":false,"merged":[[0,0,0,1],[3,1,3,28]]}
["Definitions"]
[null,"PROJECT PREPARATION"]
[1,"Project Report Development/Revisions - Travel to/from for research and development of Project Report/Revisions"]
[2,"Public Meeting/Right of Way Meeting - Preparation for and travel to/from for participation with Public Meeting and/or Right of Way Property Owner Meeting"]
[3,"Acquisition Stage Relocation Report and Updates (Each) - Travel to/from project site, conduct all necessary research, and complete forms for the ASRR submittal"]
[4,"Minor Acquisition Review - Value Range Preparation - Travel to/from for review and development of MAR Range of Values"]
[5,"Title and Closing Attorney Coordination - Coordinating with Title and Closing Attorney as defined in the Right of Way scoping meeting"]
[null,"MINOR ACQUISITION"]
[6,"Initial Offer Meeting - Travel to/from and conduct initial FMV offer meeting with the property owners, also includes preparation for the offer"]
[7,"Follow-Up Meeting(s)/Contacts - Travel to/from and conduct follow up meetings with property owners"]
[8,"Records of Contact - Complete record of contacts after each meeting/contact "]
[9,"Parcel File Documentation - Deed/MOU/Release Preparation (Any documents pertaining to verification of ownership and ability to transfer)"]
[10,"Payment Packet - Preparing, finalizing, and submitting payment packet to Project Manager for review and processing"]
[11,"Check Delivery - Travel to/from for title update (Prior to check delivery), delivery of check to property owners, and recording of deed *See below"]
[12,"Pro-Rata Property Tax Reminder Letters/Payment Packet - Defined in the Right of Way scoping meeting to determine Consultant/District responsibilities"]
[13,"Condemnation Packet - Preparing, finalizing, and submitting Condemnation Packet to Project Manager for review and processing"]
[null,"COMPLEX ACQUISITION"]
[14,"Initial Offer Meeting - Travel to/from and conduct initial FMV offer meeting with the property owners, also includes preparation for the offer"]
[15,"Follow-Up Meeting(s)/Contacts - Travel to/from and conduct follow up meetings with property owners"]
[16,"Records of Contact - Complete record of contacts after each meeting/contact "]
[17,"Parcel File Documentation - Deed/MOU/Release Preparation (Any documents pertaining to verification of ownership and ability to transfer)"]
[18,"Payment Packet - Preparing, finalizing, and submitting payment packet to Project Manager for review and processing"]
[19,"Check Delivery - Travel to/from for title update (Prior to check delivery), delivery of check to property owners, and recording of deed *See below"]
[20,"Pro-Rata Property Tax Reminder Letters/Payment Packet - Defined in the Right of Way scoping meeting to determine Consultant/District responsibilities"]
[21,"Condemnation Packet - Preparing, finalizing, and submitting Condemnation Packet to Project Manager for review and processing"]
[null,"RESIDENTIAL RELOCATION"]
[22,"Initial Worksheet and Meeting - Travel to/from, conduct initial relocation meeting with property owners, collect information for worksheet, and complete forms"]
[23,"Certified Inventory - Travel to/from, take pictures, and complete forms"]
[24,"Worksheet Update - Travel to/from, update residential worksheet, and complete forms"]
[25,"RHP/RAP Computations - Travel to/from, view comparables, and complete forms for computation approval"]
[26,"Relocation Offer Meeting - Travel to/from, conduct initial relocation offer, and complete forms"]
[27,"Advisory Services - Travel to/from, follow up meetings, and other correspondence"]
[28,"Move Estimates/Bids - Travel to/from, meet with bidders, complete forms for approval and payments"]
[29,"Move Verification/Monitoring - Travel to/from, monitor process of move, and verify move"]
[30,"DS&S Inspections - Travel to/from, perform DS&S inspection on replacement residence and complete forms"]
[31,"Records of Contact - Complete record of contacts after each meeting/contact "]
[32,"Parcel File Documentation - Complete parcel file closeout including relocation benefits form, final record of contacts, and all necessary forms"]
[33,"Payment Packet - Preparing, finalizing, and submitting payment packet to Project Manager for review and processing"]
[34,"Check Delivery - Travel to/from, deliver RHP, move, and all other checks to property owners"]
[null,"COMMERCIAL/BUSINESS RELOCATION"]
[35,"Initial Worksheet and Meeting - Travel to/from, conduct initial relocation meeting with business owners, and collect information for worksheet"]
[36,"Certified Inventory - Travel to/from, take pictures, and complete forms"]
[37,"Move Estimates/Bids - Travel to/from, meet with bidders/staff estimate, complete forms for approval and payments"]
[38,"Relocation Offer Meeting - Travel to/from, conduct initial relocation offer, and complete forms"]
[39,"Advisory Services - Travel to/from, follow up meetings, and other correspondence"]
[40,"Move/Re-Establishment/In Lieu of Move - Travel to/from, meet with bidders, complete forms, for approval and payments"]
[41,"Records of Contact - Complete record of contacts after each meeting/contact "]
[42,"Parcel File Documentation - Complete parcel file closeout including relocation benefits form, final record of contacts, and all necessary forms"]
[43,"Payment Packet - Preparing, finalizing, and submitting payment packet to Project Manager for review and processing"]
[44,"Check Delivery - Travel to/from, deliver move, reestablishment, searching expenses, and all other checks to property owners"]
[null,"MISCELLANEOUS MOVE"]
[45,"Initial Worksheet and Meeting - Travel to/from, conduct initial relocation meeting with property owners, and collect information for worksheet"]
[46,"Certified Inventory - Travel to/from, take pictures, and complete forms"]
[47,"Move Estimates/Bids - Travel to/from, meet with bidders/staff estimate, complete forms for approval and payments"]
[48,"Relocation Offer Meeting - Travel to/from, conduct initial relocation offer, and complete forms"]
[49,"Advisory Services - Travel to/from, follow up meetings, and other correspondence"]
[50,"Move Verification/Monitoring - Travel to/from, monitor process of move, and verify move"]
[51,"Records of Contact - Complete record of contacts after each meeting/contact "]
[52,"Parcel File Documentation - Complete parcel file closeout including relocation benefits form, final record of contacts, and all necessary forms"]
[53,"Payment Packet - Preparing, finalizing, and submitting payment packet to Project Manager for review and processing"]
[54,"Check Delivery - Travel to/from, deliver move checks to property owners"]
[null,"OUTDOOR ADVERTISING RELOCATION"]
[55,"Initial Worksheet and Meeting - Travel to/from, conduct initial relocation meeting with sign owners, and collect information for worksheet"]
[56,"Certified Inventory - Travel to/from, take pictures, and complete forms"]
[57,"Move Estimates/Bids - Travel to/from, meet with bidders/staff estimate, complete forms for approval and payments"]
[58,"Relocation Offer Meeting - Travel to/from, conduct initial relocation offer, and complete forms"]
[59,"Advisory Services - Travel to/from, follow up meetings, and other correspondence"]
[60,"Move Verification/Monitoring - Travel to/from, monitor process of move, and verify move"]
[61,"Records of Contact - Complete record of contacts after each meeting/contact "]
[62,"Parcel File Documentation - Complete parcel file closeout including relocation benefits form, final record of contacts, and all necessary forms"]
[63,"Payment Packet - Preparing, finalizing, and submitting payment packet to Project Manager for review and processing"]
[64,"Check Delivery - Travel to/from, deliver move checks to property owners"]
[null,"PROPERTY MANAGEMENT"]
[65,"Inspect Parcels-Possible HAZMAT, UST’s or AST’s - Travel to/from for required onsite inspection of any known or observable HAZMAT, UST’s or AST’s not shown on plans"]
[66,"Prepare-Project Summary Improvements Form w/salvage values with KYTC Approval - Complete TC 62-201 including salvage values, salvage values approved by KYTC prior to submittal"]
[67,"Status Report of Improvements Updated as Needed - Maintain updated status report for KYTC as improvements are acquired, inspected, abated, disposed"]
[68,"Coordinate with KYTC for environmental remediation and ACM Removal - Submit request to KYTC Central Office Property Management Specialist for inspection of ACM/Remediation needs"]
[69,"Photographs and Inspection of Improvements - Travel to/from for photograph of vacated parcels and inspect inside all improvements report findings to KYTC"]
[70,"Parcel File Documentation - Complete parcel file with all information regarding property management, inspection request, memo’s etc."]
[71,"Coordinate Clearance from Right of Way - Prepare improvements for disposal, removal of all utilities from improvements"]
[72,"Project Security of Improvements - Secure improvements between vacation of buildings to demolition of improvements, responsible for security and boarding"]
[73,"Coordinate Bid Preparation for Removal of Improvement through KYTC - Prepare Bid Packet per KYTC requirements submit to Relocation Branch for review and approval"]
[74,"Monitor Removal of Improvements - Travel to/from to monitor Improvement removal, date and time of inspection, ground condition, and removal activities performed at the time of inspection, description of the progress made toward removing the improvement.  Keep daily log on all inspections"]
[75,"Project Close out for Improvement Removal - Complete Property Management file for close out submit photographs of the cleared sites and inspect record to KYTC-Relocation Branch Manager or designee"]
[null,"ROW PROJECT MANAGEMENT"]
[76,"Parcel Review - Acquisition Payment Packet - Project Manager Review and approval of Acquisition Payment Packet for submittal to District"]
[77,"Parcel Review - Condemnation Packet - Project Manager Review and approval of Condemnation Packet for submittal to District"]
[78,"Parcel Review - Relocation Payment Packet - Project Manager Review and approval of Relocation Payment Packet for submittal to District"]
[79,"Parcel Review - Tax Reimbursement Payment Packet - Project Manager Review and approval of Tax Reimbursement Payment Packet for submittal to District (If needed)"]
[80,"Monthly Project Status Meetings and Preparation (Each) - Travel to/from District Office to conduct monthly Right of Way Status Meeting"]
[81,"District Coordination - Communication with district regarding questions and issues related to right of way"]
[82,"Sub-Consultant Coordination - Appraisal (Each) - Communication with sub consultant Appraiser"]
[83,"Sub-Consultant Coordination - Appraisal Review (Each) - Communication with sub consultant Appraisal Reviewer"]
[84,"Sub-Consultant Coordination - Acquisition (Each) - Communication with sub consultant Acquisition staff"]
[85,"Sub-Consultant Coordination - Relocation (Each) - Communication with sub consultant Relocation staff"]
[86,"Invoicing (Each) - Preparation and submittal of invoices to District, Central Office Right of Way, and Professional Services"]
[87,"Project Close-Out - Finalizing project folders and travel/to from District for delivery of completed Project Folders"]
[]
[null,"*Supervisors, Project Managers, and the Agent who acquired the parcel shall not deliver the check to the property owner"]